[Event "Titled Tuesday Blitz January 10 Early 2023"]
[White "Gheorghiu, Calin"]
[Black "Wilson, Elvin"]
[WhiteFideId "1200305"]
[BlackFideId "2014874"]
[WhiteElo "2313"]
[BlackElo "2183"]
[Result "1/2-1/2"]
[Round "06"]
[TimeControl "180+2"]
[Date "2023.01.10"]
[WhiteClock "0:00:06"]
[BlackClock "0:00:19"]

1. b3 {[%clk 0:03:00]}  e5 {[%clk 0:02:59]} 2. Bb2 {[%clk 0:02:59]}  Nc6 {[%clk 0:02:59]} 3. e3 {[%clk 0:02:56]}  Nf6 {[%clk 0:02:52]} 4. Bb5 {[%clk 0:02:54]}  Bd6 {[%clk 0:02:52]} 5. Na3 {[%clk 0:02:51]}  a6 {[%clk 0:02:51]} 6. Bxc6 {[%clk 0:02:49]}  dxc6 {[%clk 0:02:51]} 7. Nc4 {[%clk 0:02:48]}  e4 {[%clk 0:02:41]} 8. Nxd6+ {[%clk 0:02:18]}  Qxd6 {[%clk 0:02:32]} 9. Ne2 {[%clk 0:02:14]}  O-O {[%clk 0:02:31]} 10. Ng3 {[%clk 0:01:44]}  Re8 {[%clk 0:02:11]} 11. O-O {[%clk 0:01:35]}  Bg4 {[%clk 0:02:08]} 12. Qe1 {[%clk 0:01:26]}  Rad8 {[%clk 0:02:07]} 13. h3 {[%clk 0:01:24]}  Bc8 {[%clk 0:01:52]} 14. Rd1 {[%clk 0:01:16]}  Nd5 {[%clk 0:01:18]} 15. d3 {[%clk 0:00:58]}  exd3 {[%clk 0:01:16]} 16. Rxd3 {[%clk 0:00:55]}  Qg6 {[%clk 0:01:16]} 17. Qd2 {[%clk 0:00:46]}  Rd7 {[%clk 0:00:56]} 18. c4 {[%clk 0:00:35]}  Nb6 {[%clk 0:00:49]} 19. Rxd7 {[%clk 0:00:34]}  Nxd7 {[%clk 0:00:48]} 20. Rd1 {[%clk 0:00:33]}  Nf8 {[%clk 0:00:47]} 21. Qd4 {[%clk 0:00:29]}  Ne6 {[%clk 0:00:39]} 22. Qd3 {[%clk 0:00:20]}  Qxd3 {[%clk 0:00:31]} 23. Rxd3 {[%clk 0:00:20]}  Rd8 {[%clk 0:00:29]} 24. Rxd8+ {[%clk 0:00:19]}  Nxd8 {[%clk 0:00:29]} 25. Be5 {[%clk 0:00:18]}  Ne6 {[%clk 0:00:28]} 26. Nf5 {[%clk 0:00:18]}  f6 {[%clk 0:00:28]} 27. Bg3 {[%clk 0:00:12]}  Kf7 {[%clk 0:00:28]} 28. Nd4 {[%clk 0:00:11]}  Nxd4 {[%clk 0:00:25]} 29. exd4 {[%clk 0:00:12]}  b5 {[%clk 0:00:24]} 30. cxb5 {[%clk 0:00:09]}  cxb5 {[%clk 0:00:23]} 31. Bxc7 {[%clk 0:00:10]}  Ke6 {[%clk 0:00:22]} 32. Kf1 {[%clk 0:00:08]}  Kd5 {[%clk 0:00:23]} 33. Bb6 {[%clk 0:00:08]}  Bf5 {[%clk 0:00:23]} 34. Ke2 {[%clk 0:00:08]}  Bb1 {[%clk 0:00:19]} 35. Kd2 {[%clk 0:00:08]}  Be4 {[%clk 0:00:18]} 36. f3 {[%clk 0:00:08]}  Bf5 {[%clk 0:00:18]} 37. g4 {[%clk 0:00:07]}  Be6 {[%clk 0:00:18]} 38. Bc5 {[%clk 0:00:06]}  g6 {[%clk 0:00:17]} 39. h4 {[%clk 0:00:06]}  f5 {[%clk 0:00:17]} 40. g5 {[%clk 0:00:02]}  Bd7 {[%clk 0:00:17]} 41. Ke3 {[%clk 0:00:03]}  Bc6 {[%clk 0:00:18]} 42. Kf4 {[%clk 0:00:03]}  Ke6 {[%clk 0:00:17]} 43. Ke3 {[%clk 0:00:04]}  Bd5 {[%clk 0:00:18]} 44. f4 {[%clk 0:00:04]}  Kd7 {[%clk 0:00:18]} 45. Kd3 {[%clk 0:00:05]}  Kc6 {[%clk 0:00:18]} 46. Kc3 {[%clk 0:00:05]}  Be4 {[%clk 0:00:18]} 47. a3 {[%clk 0:00:06]}  Kd5 {[%clk 0:00:18]} 48. b4 {[%clk 0:00:06]}  Kc6 {[%clk 0:00:19]} 49. Ba7 {[%clk 0:00:06]}  Kd5 {[%clk 0:00:19]} 50. Bc5 {[%clk 0:00:06]}  Kc6 {[%clk 0:00:19]} 51. Kd2 {[%clk 0:00:06]}  Kd5 {[%clk 0:00:19]} 52. Kc3 {[%clk 0:00:06]} 1/2-1/2


[Site "https://www.chess.com"]

[Event "Titled Tuesday Blitz January 10 Early 2023"]
[White "Ansh M Shah"]
[Black "Perez Rodriguez, Jennifer"]
[WhiteFideId "25033379"]
[BlackFideId "3507831"]
[WhiteElo "2171"]
[BlackElo "2242"]
[Result "1-0"]
[Round "06"]
[TimeControl "180+2"]
[Date "2023.01.10"]
[WhiteClock "0:01:23"]
[BlackClock "0:00:18"]

1. d4 {[%clk 0:03:00]}  d5 {[%clk 0:01:33]} 2. c4 {[%clk 0:03:00]}  c6 {[%clk 0:01:33]} 3. cxd5 {[%clk 0:03:00]}  cxd5 {[%clk 0:01:33]} 4. Nc3 {[%clk 0:03:01]}  Nc6 {[%clk 0:01:33]} 5. Bf4 {[%clk 0:03:01]}  a6 {[%clk 0:01:32]} 6. e3 {[%clk 0:03:01]}  Nf6 {[%clk 0:01:32]} 7. Nf3 {[%clk 0:03:01]}  Bg4 {[%clk 0:01:33]} 8. Rc1 {[%clk 0:03:01]}  Rc8 {[%clk 0:01:31]} 9. Bd3 {[%clk 0:02:59]}  e6 {[%clk 0:01:31]} 10. Qb3 {[%clk 0:02:59]}  Na5 {[%clk 0:01:24]} 11. Qa4+ {[%clk 0:02:50]}  Nc6 {[%clk 0:01:23]} 12. Ne5 {[%clk 0:02:49]}  Bd6 {[%clk 0:01:17]} 13. Nxc6 {[%clk 0:02:41]}  Rxc6 {[%clk 0:01:12]} 14. Bxa6 {[%clk 0:02:36]}  O-O {[%clk 0:01:01]} 15. Bb5 {[%clk 0:02:35]}  Rc8 {[%clk 0:00:56]} 16. Bxd6 {[%clk 0:02:32]}  Qxd6 {[%clk 0:00:57]} 17. h3 {[%clk 0:02:31]}  Bf5 {[%clk 0:00:56]} 18. O-O {[%clk 0:02:23]}  Ne4 {[%clk 0:00:41]} 19. Nxe4 {[%clk 0:02:23]}  Bxe4 {[%clk 0:00:41]} 20. Be2 {[%clk 0:02:17]}  Ra8 {[%clk 0:00:40]} 21. Qb3 {[%clk 0:02:14]}  h6 {[%clk 0:00:28]} 22. Rc3 {[%clk 0:02:09]}  e5 {[%clk 0:00:27]} 23. dxe5 {[%clk 0:01:48]}  Qxe5 {[%clk 0:00:28]} 24. Qb4 {[%clk 0:01:45]}  Rxa2 {[%clk 0:00:25]} 25. Rfc1 {[%clk 0:01:26]}  Kh7 {[%clk 0:00:18]} 26. Qxf8 {[%clk 0:01:23]} 1-0


[Site "https://www.chess.com"]

[Event "Titled Tuesday Blitz January 10 Early 2023"]
[White "Carbone, Diego"]
[Black "Levitan, Caleb Levi"]
[WhiteFideId "3002179"]
[BlackFideId "14332620"]
[WhiteElo "2336"]
[BlackElo "2129"]
[Result "0-1"]
[Round "06"]
[TimeControl "180+2"]
[Date "2023.01.10"]
[WhiteClock "0:00:01"]
[BlackClock "0:00:03"]

1. d4 {[%clk 0:02:58]}  Nf6 {[%clk 0:02:59]} 2. c4 {[%clk 0:02:58]}  e6 {[%clk 0:02:59]} 3. g3 {[%clk 0:02:59]}  d5 {[%clk 0:02:58]} 4. Nf3 {[%clk 0:02:58]}  dxc4 {[%clk 0:02:57]} 5. Bg2 {[%clk 0:02:57]}  Bb4+ {[%clk 0:02:56]} 6. Bd2 {[%clk 0:02:57]}  c5 {[%clk 0:02:57]} 7. Bxb4 {[%clk 0:02:18]}  cxb4 {[%clk 0:02:56]} 8. Ne5 {[%clk 0:02:19]}  O-O {[%clk 0:02:38]} 9. a3 {[%clk 0:02:13]}  Nd5 {[%clk 0:01:48]} 10. Nxc4 {[%clk 0:02:10]}  bxa3 {[%clk 0:01:43]} 11. Nbxa3 {[%clk 0:02:03]}  Bd7 {[%clk 0:01:35]} 12. Ne5 {[%clk 0:01:58]}  Nc6 {[%clk 0:01:32]} 13. Nxd7 {[%clk 0:01:58]}  Qxd7 {[%clk 0:01:32]} 14. O-O {[%clk 0:01:57]}  Rac8 {[%clk 0:01:30]} 15. e3 {[%clk 0:01:46]}  a6 {[%clk 0:01:01]} 16. Nc4 {[%clk 0:01:33]}  Nce7 {[%clk 0:00:48]} 17. Ne5 {[%clk 0:01:30]}  Qd6 {[%clk 0:00:45]} 18. Qd2 {[%clk 0:01:10]}  Nc6 {[%clk 0:00:33]} 19. Nd3 {[%clk 0:01:06]}  Nb8 {[%clk 0:00:11]} 20. Nc5 {[%clk 0:00:46]}  Nd7 {[%clk 0:00:06]} 21. Nxb7 {[%clk 0:00:25]}  Qb6 {[%clk 0:00:06]} 22. Na5 {[%clk 0:00:23]}  Nb4 {[%clk 0:00:07]} 23. b3 {[%clk 0:00:15]}  Rc7 {[%clk 0:00:06]} 24. Nc4 {[%clk 0:00:15]}  Qb5 {[%clk 0:00:05]} 25. Ra4 {[%clk 0:00:13]}  Nd5 {[%clk 0:00:04]} 26. Rfa1 {[%clk 0:00:10]}  Qxb3 {[%clk 0:00:03]} 27. Na5 {[%clk 0:00:05]}  Qc2 {[%clk 0:00:02]} 28. Qxc2 {[%clk 0:00:04]}  Rxc2 {[%clk 0:00:02]} 29. h4 {[%clk 0:00:04]}  Rfc8 {[%clk 0:00:03]} 30. Nb3 {[%clk 0:00:03]}  R2c3 {[%clk 0:00:03]} 31. Nd2 {[%clk 0:00:02]}  Rc1+ {[%clk 0:00:03]} 32. Kh2 {[%clk 0:00:01]}  Rxa1 {[%clk 0:00:03]} 33. Rxa1 {[%clk 0:00:02]}  Rc2 {[%clk 0:00:04]} 34. Ne4 {[%clk 0:00:01]}  Nb4 {[%clk 0:00:03]} 0-1


[Site "https://www.chess.com"]

[Event "Titled Tuesday Blitz January 10 Early 2023"]
[White "Ljukin, Sergei"]
[Black "Marcziter, Dmitrii"]
[WhiteFideId "14102200"]
[BlackFideId "13900765"]
[WhiteElo "2362"]
[BlackElo "2234"]
[Result "1-0"]
[Round "06"]
[TimeControl "180+2"]
[Date "2023.01.10"]
[WhiteClock "0:00:25"]
[BlackClock "0:00:37"]

1. e4 {[%clk 0:02:53]}  c5 {[%clk 0:02:58]} 2. Nf3 {[%clk 0:02:53]}  a6 {[%clk 0:02:58]} 3. c4 {[%clk 0:02:52]}  e6 {[%clk 0:02:58]} 4. d4 {[%clk 0:02:52]}  Qc7 {[%clk 0:02:59]} 5. d5 {[%clk 0:02:52]}  exd5 {[%clk 0:02:59]} 6. exd5 {[%clk 0:02:52]}  d6 {[%clk 0:02:59]} 7. Bd3 {[%clk 0:02:52]}  Nf6 {[%clk 0:02:58]} 8. O-O {[%clk 0:02:53]}  Be7 {[%clk 0:02:59]} 9. h3 {[%clk 0:02:52]}  O-O {[%clk 0:02:59]} 10. Nc3 {[%clk 0:02:52]}  Re8 {[%clk 0:02:56]} 11. Bf4 {[%clk 0:02:50]}  Bf8 {[%clk 0:02:50]} 12. Re1 {[%clk 0:02:48]}  g6 {[%clk 0:02:46]} 13. Qd2 {[%clk 0:02:46]}  Bg7 {[%clk 0:02:45]} 14. Rxe8+ {[%clk 0:02:37]}  Nxe8 {[%clk 0:02:44]} 15. Ne4 {[%clk 0:02:33]}  Nd7 {[%clk 0:02:42]} 16. Re1 {[%clk 0:02:32]}  Ne5 {[%clk 0:02:41]} 17. Nxe5 {[%clk 0:02:14]}  dxe5 {[%clk 0:02:40]} 18. Bh2 {[%clk 0:02:14]}  Nd6 {[%clk 0:02:34]} 19. f4 {[%clk 0:01:51]}  Nxe4 {[%clk 0:02:04]} 20. Rxe4 {[%clk 0:01:50]}  f5 {[%clk 0:02:03]} 21. Rxe5 {[%clk 0:01:50]}  Bxe5 {[%clk 0:02:01]} 22. fxe5 {[%clk 0:01:51]}  b5 {[%clk 0:01:55]} 23. e6 {[%clk 0:01:50]}  Qe7 {[%clk 0:01:52]} 24. Be5 {[%clk 0:01:46]}  Bb7 {[%clk 0:01:50]} 25. Qh6 {[%clk 0:01:20]}  Qf8 {[%clk 0:01:32]} 26. Qf4 {[%clk 0:01:13]}  Qe7 {[%clk 0:01:27]} 27. b3 {[%clk 0:01:03]}  Rd8 {[%clk 0:01:25]} 28. Bb2 {[%clk 0:00:56]}  Qd6 {[%clk 0:01:11]} 29. Qg5 {[%clk 0:00:31]}  Rf8 {[%clk 0:01:02]} 30. Qh6 {[%clk 0:00:26]}  Qe7 {[%clk 0:00:37]} 31. d6 {[%clk 0:00:25]} 1-0


[Site "https://www.chess.com"]

[Event "Titled Tuesday Blitz January 10 Early 2023"]
[White "Valle Maytin, Luis Enrique"]
[Black "Real_taiatai"]
[WhiteFideId "3503666"]
[WhiteElo "2241"]
[BlackElo "2318"]
[Result "0-1"]
[Round "06"]
[TimeControl "180+2"]
[Date "2023.01.10"]
[WhiteClock "0:00:09"]
[BlackClock "0:00:14"]

1. e4 {[%clk 0:03:00]}  c5 {[%clk 0:02:54]} 2. Nf3 {[%clk 0:03:00]}  g6 {[%clk 0:02:54]} 3. d4 {[%clk 0:03:00]}  cxd4 {[%clk 0:02:55]} 4. Nxd4 {[%clk 0:03:01]}  Bg7 {[%clk 0:02:55]} 5. Nc3 {[%clk 0:03:01]}  Nc6 {[%clk 0:02:54]} 6. Be3 {[%clk 0:02:58]}  Nf6 {[%clk 0:02:54]} 7. Be2 {[%clk 0:02:58]}  O-O {[%clk 0:02:53]} 8. f3 {[%clk 0:02:58]}  d6 {[%clk 0:02:53]} 9. Qd2 {[%clk 0:02:58]}  Bd7 {[%clk 0:02:51]} 10. h4 {[%clk 0:02:56]}  h5 {[%clk 0:02:47]} 11. O-O-O {[%clk 0:02:55]}  Qa5 {[%clk 0:02:42]} 12. Kb1 {[%clk 0:02:54]}  Rfc8 {[%clk 0:02:42]} 13. Nb3 {[%clk 0:02:51]}  Qc7 {[%clk 0:02:32]} 14. Bh6 {[%clk 0:02:47]}  Bh8 {[%clk 0:02:32]} 15. Rdg1 {[%clk 0:02:39]}  Ne5 {[%clk 0:02:22]} 16. Be3 {[%clk 0:02:31]}  Nc4 {[%clk 0:02:04]} 17. Bxc4 {[%clk 0:02:30]}  Qxc4 {[%clk 0:02:05]} 18. Bd4 {[%clk 0:02:30]}  b5 {[%clk 0:02:00]} 19. g4 {[%clk 0:02:10]}  b4 {[%clk 0:01:50]} 20. Bxf6 {[%clk 0:02:08]}  bxc3 {[%clk 0:01:37]} 21. Bxc3 {[%clk 0:02:07]}  Bxc3 {[%clk 0:01:37]} 22. Qxc3 {[%clk 0:02:02]}  Qxc3 {[%clk 0:01:36]} 23. bxc3 {[%clk 0:02:02]}  hxg4 {[%clk 0:01:36]} 24. fxg4 {[%clk 0:01:35]}  Rxc3 {[%clk 0:01:22]} 25. h5 {[%clk 0:01:34]}  a5 {[%clk 0:01:18]} 26. Kb2 {[%clk 0:01:26]}  Rc4 {[%clk 0:01:13]} 27. Nd2 {[%clk 0:01:20]}  Rc5 {[%clk 0:00:57]} 28. hxg6 {[%clk 0:01:18]}  fxg6 {[%clk 0:00:57]} 29. g5 {[%clk 0:01:16]}  Rb8+ {[%clk 0:00:51]} 30. Kc1 {[%clk 0:01:15]}  Rbc8 {[%clk 0:00:51]} 31. c4 {[%clk 0:01:13]}  Be6 {[%clk 0:00:50]} 32. Rh6 {[%clk 0:01:12]}  Kg7 {[%clk 0:00:40]} 33. Rgh1 {[%clk 0:01:09]}  Rxg5 {[%clk 0:00:39]} 34. Rh7+ {[%clk 0:01:07]}  Kf8 {[%clk 0:00:27]} 35. Rf1+ {[%clk 0:01:07]}  Ke8 {[%clk 0:00:26]} 36. Rh8+ {[%clk 0:00:33]}  Kd7 {[%clk 0:00:27]} 37. Rxc8 {[%clk 0:00:33]}  Kxc8 {[%clk 0:00:27]} 38. Kc2 {[%clk 0:00:31]}  Rg2 {[%clk 0:00:24]} 39. Kc3 {[%clk 0:00:29]}  Rg3+ {[%clk 0:00:23]} 40. Kd4 {[%clk 0:00:27]}  Ra3 {[%clk 0:00:22]} 41. Rf8+ {[%clk 0:00:20]}  Kd7 {[%clk 0:00:21]} 42. Nb3 {[%clk 0:00:16]}  Rxa2 {[%clk 0:00:17]} 43. Ra8 {[%clk 0:00:16]}  Ra4 {[%clk 0:00:16]} 44. Nd2 {[%clk 0:00:14]}  Ra3 {[%clk 0:00:15]} 45. e5 {[%clk 0:00:13]}  Bf5 {[%clk 0:00:15]} 46. Ra7+ {[%clk 0:00:10]}  Ke6 {[%clk 0:00:15]} 47. Ne4 {[%clk 0:00:08]}  dxe5+ {[%clk 0:00:13]} 48. Kc5 {[%clk 0:00:08]}  Bxe4 {[%clk 0:00:14]} 49. Ra6+ {[%clk 0:00:09]}  Kf5 {[%clk 0:00:14]} 0-1


[Site "https://www.chess.com"]

[Event "Titled Tuesday Blitz January 10 Early 2023"]
[White "Tymrakiewicz, Rafal"]
[Black "Schut, Han"]
[WhiteFideId "1108832"]
[BlackFideId "1005561"]
[WhiteElo "2144"]
[BlackElo "2101"]
[Result "1-0"]
[Round "06"]
[TimeControl "180+2"]
[Date "2023.01.10"]
[WhiteClock "0:00:14"]
[BlackClock "0:00:08"]

1. d4 {[%clk 0:03:00]}  Nf6 {[%clk 0:02:55]} 2. Bg5 {[%clk 0:02:58]}  d5 {[%clk 0:02:54]} 3. e3 {[%clk 0:02:58]}  g6 {[%clk 0:02:51]} 4. Bxf6 {[%clk 0:02:57]}  exf6 {[%clk 0:02:52]} 5. c4 {[%clk 0:02:56]}  dxc4 {[%clk 0:02:52]} 6. Bxc4 {[%clk 0:02:55]}  f5 {[%clk 0:02:41]} 7. Nc3 {[%clk 0:02:52]}  Bg7 {[%clk 0:02:41]} 8. h4 {[%clk 0:02:43]}  h5 {[%clk 0:02:37]} 9. Nf3 {[%clk 0:02:40]}  O-O {[%clk 0:02:36]} 10. g3 {[%clk 0:02:37]}  b6 {[%clk 0:02:30]} 11. O-O {[%clk 0:02:27]}  Bb7 {[%clk 0:02:30]} 12. Ng5 {[%clk 0:02:27]}  Nd7 {[%clk 0:01:43]} 13. Qb3 {[%clk 0:02:24]}  Qe8 {[%clk 0:01:22]} 14. Bd5 {[%clk 0:02:23]}  c6 {[%clk 0:01:09]} 15. Bg2 {[%clk 0:02:23]}  Nf6 {[%clk 0:01:07]} 16. Rac1 {[%clk 0:02:21]}  Rc8 {[%clk 0:01:06]} 17. Qa4 {[%clk 0:02:19]}  a6 {[%clk 0:01:00]} 18. Qb3 {[%clk 0:02:14]}  b5 {[%clk 0:00:58]} 19. Na4 {[%clk 0:02:13]}  Nd7 {[%clk 0:00:48]} 20. Nc5 {[%clk 0:02:06]}  Nxc5 {[%clk 0:00:47]} 21. Rxc5 {[%clk 0:02:07]}  Qd7 {[%clk 0:00:40]} 22. Rfc1 {[%clk 0:02:06]}  Rfe8 {[%clk 0:00:38]} 23. a3 {[%clk 0:01:13]}  Bf6 {[%clk 0:00:37]} 24. Nf3 {[%clk 0:01:10]}  Be7 {[%clk 0:00:34]} 25. Ne5 {[%clk 0:01:09]}  Qe6 {[%clk 0:00:20]} 26. Qxe6 {[%clk 0:01:09]}  fxe6 {[%clk 0:00:21]} 27. R5c2 {[%clk 0:00:57]}  Rc7 {[%clk 0:00:18]} 28. Nxg6 {[%clk 0:00:49]}  Bf6 {[%clk 0:00:13]} 29. Nf4 {[%clk 0:00:28]}  e5 {[%clk 0:00:07]} 30. Nxh5 {[%clk 0:00:28]}  Bh8 {[%clk 0:00:08]} 31. d5 {[%clk 0:00:25]}  c5 {[%clk 0:00:07]} 32. d6 {[%clk 0:00:25]}  Rd7 {[%clk 0:00:08]} 33. Bxb7 {[%clk 0:00:23]}  Rxb7 {[%clk 0:00:09]} 34. Rxc5 {[%clk 0:00:23]}  Rd7 {[%clk 0:00:09]} 35. Rc6 {[%clk 0:00:16]}  Red8 {[%clk 0:00:09]} 36. Rd1 {[%clk 0:00:16]}  a5 {[%clk 0:00:09]} 37. f3 {[%clk 0:00:15]}  e4 {[%clk 0:00:09]} 38. fxe4 {[%clk 0:00:15]}  fxe4 {[%clk 0:00:10]} 39. b3 {[%clk 0:00:15]}  a4 {[%clk 0:00:07]} 40. bxa4 {[%clk 0:00:15]}  bxa4 {[%clk 0:00:07]} 41. Nf4 {[%clk 0:00:14]}  Bb2 {[%clk 0:00:07]} 42. Ne6 {[%clk 0:00:13]}  Rb8 {[%clk 0:00:07]} 43. Nc5 {[%clk 0:00:13]}  Rdd8 {[%clk 0:00:07]} 44. d7 {[%clk 0:00:14]}  Bxa3 {[%clk 0:00:07]} 45. Ne6 {[%clk 0:00:14]}  Be7 {[%clk 0:00:05]} 46. Nxd8 {[%clk 0:00:14]}  Rxd8 {[%clk 0:00:05]} 47. Rc8 {[%clk 0:00:14]}  Kf7 {[%clk 0:00:06]} 48. Rd4 {[%clk 0:00:09]}  a3 {[%clk 0:00:05]} 49. Rxd8 {[%clk 0:00:08]}  Bxd8 {[%clk 0:00:05]} 50. Rxe4 {[%clk 0:00:08]}  Be7 {[%clk 0:00:04]} 51. Kg2 {[%clk 0:00:06]}  Bd8 {[%clk 0:00:03]} 52. Kf3 {[%clk 0:00:05]}  Bc7 {[%clk 0:00:03]} 53. Ra4 {[%clk 0:00:05]}  Ke7 {[%clk 0:00:02]} 54. Rxa3 {[%clk 0:00:05]}  Kxd7 {[%clk 0:00:03]} 55. Ra7 {[%clk 0:00:05]}  Kc6 {[%clk 0:00:04]} 56. Rxc7+ {[%clk 0:00:06]}  Kxc7 {[%clk 0:00:05]} 57. g4 {[%clk 0:00:06]}  Kd6 {[%clk 0:00:06]} 58. g5 {[%clk 0:00:06]}  Ke6 {[%clk 0:00:06]} 59. Kg4 {[%clk 0:00:07]}  Kf7 {[%clk 0:00:07]} 60. h5 {[%clk 0:00:08]}  Kg7 {[%clk 0:00:08]} 61. e4 {[%clk 0:00:09]}  Kh8 {[%clk 0:00:08]} 62. e5 {[%clk 0:00:10]}  Kg7 {[%clk 0:00:09]} 63. Kf5 {[%clk 0:00:11]}  Kf7 {[%clk 0:00:09]} 64. e6+ {[%clk 0:00:12]}  Kg7 {[%clk 0:00:09]} 65. g6 {[%clk 0:00:13]}  Kg8 {[%clk 0:00:08]} 66. Kf6 {[%clk 0:00:13]}  Kf8 {[%clk 0:00:08]} 67. e7+ {[%clk 0:00:13]}  Ke8 {[%clk 0:00:08]} 68. g7 {[%clk 0:00:14]}  Kd7 {[%clk 0:00:08]} 69. g8=Q {[%clk 0:00:14]} 1-0


[Site "https://www.chess.com"]

[Event "Titled Tuesday Blitz January 10 Early 2023"]
[White "Campbell, Charles"]
[Black "Avazkhonov, Alikhon"]
[WhiteFideId "8500436"]
[BlackFideId "14208504"]
[WhiteElo "2179"]
[BlackElo "1538"]
[Result "1-0"]
[Round "06"]
[TimeControl "180+2"]
[Date "2023.01.10"]
[WhiteClock "0:01:04"]
[BlackClock "0:00:08"]

1. d4 {[%clk 0:02:57]}  Nf6 {[%clk 0:02:44]} 2. Nf3 {[%clk 0:02:57]}  e6 {[%clk 0:02:44]} 3. c4 {[%clk 0:02:57]}  Bb4+ {[%clk 0:02:44]} 4. Bd2 {[%clk 0:02:57]}  Qe7 {[%clk 0:02:45]} 5. Nc3 {[%clk 0:02:57]}  O-O {[%clk 0:02:38]} 6. e3 {[%clk 0:02:56]}  Bxc3 {[%clk 0:02:34]} 7. Bxc3 {[%clk 0:02:56]}  Ne4 {[%clk 0:02:34]} 8. Qc2 {[%clk 0:02:56]}  Nxc3 {[%clk 0:02:30]} 9. Qxc3 {[%clk 0:02:54]}  Nc6 {[%clk 0:02:30]} 10. a3 {[%clk 0:02:53]}  d6 {[%clk 0:02:28]} 11. Be2 {[%clk 0:02:50]}  e5 {[%clk 0:02:27]} 12. O-O {[%clk 0:02:48]}  Bg4 {[%clk 0:02:22]} 13. dxe5 {[%clk 0:02:47]}  Nxe5 {[%clk 0:02:18]} 14. Nxe5 {[%clk 0:02:45]}  Bxe2 {[%clk 0:02:19]} 15. Rfe1 {[%clk 0:02:43]}  Qxe5 {[%clk 0:02:19]} 16. Qxe5 {[%clk 0:02:37]}  dxe5 {[%clk 0:02:20]} 17. Rxe2 {[%clk 0:02:37]}  Rfd8 {[%clk 0:02:21]} 18. Rc1 {[%clk 0:02:37]}  Rd3 {[%clk 0:02:20]} 19. Rec2 {[%clk 0:02:37]}  Rad8 {[%clk 0:02:20]} 20. Kf1 {[%clk 0:02:36]}  c5 {[%clk 0:02:14]} 21. Ke2 {[%clk 0:02:36]}  e4 {[%clk 0:02:14]} 22. f3 {[%clk 0:02:24]}  f5 {[%clk 0:02:05]} 23. fxe4 {[%clk 0:02:24]}  fxe4 {[%clk 0:02:06]} 24. Rf1 {[%clk 0:02:24]}  Rf8 {[%clk 0:01:56]} 25. Rxf8+ {[%clk 0:02:21]}  Kxf8 {[%clk 0:01:56]} 26. Rd2 {[%clk 0:02:21]}  Rb3 {[%clk 0:01:14]} 27. Rc2 {[%clk 0:01:56]}  Ke7 {[%clk 0:01:11]} 28. Rd2 {[%clk 0:01:56]}  Ke6 {[%clk 0:01:06]} 29. Kf2 {[%clk 0:01:53]}  a5 {[%clk 0:00:56]} 30. Ke2 {[%clk 0:01:51]}  a4 {[%clk 0:00:55]} 31. Kf2 {[%clk 0:01:50]}  h5 {[%clk 0:00:37]} 32. Ke2 {[%clk 0:01:17]}  g5 {[%clk 0:00:37]} 33. Kf2 {[%clk 0:01:17]}  Rd3 {[%clk 0:00:33]} 34. Ke2 {[%clk 0:01:11]}  Rxd2+ {[%clk 0:00:20]} 35. Kxd2 {[%clk 0:01:11]}  Kf5 {[%clk 0:00:19]} 36. Ke2 {[%clk 0:01:11]}  Kg4 {[%clk 0:00:18]} 37. Kf2 {[%clk 0:01:11]}  h4 {[%clk 0:00:17]} 38. h3+ {[%clk 0:01:10]}  Kf5 {[%clk 0:00:17]} 39. g4+ {[%clk 0:01:08]}  Ke5 {[%clk 0:00:10]} 40. Ke2 {[%clk 0:01:08]}  Kd6 {[%clk 0:00:08]} 41. Kd2 {[%clk 0:01:08]}  Kc6 {[%clk 0:00:08]} 42. Kc3 {[%clk 0:01:09]}  b5 {[%clk 0:00:08]} 43. b4 {[%clk 0:01:07]}  Kb6 {[%clk 0:00:04]} 44. bxc5+ {[%clk 0:01:03]}  Kxc5 {[%clk 0:00:04]} 45. cxb5 {[%clk 0:01:04]}  Kxb5 {[%clk 0:00:04]} 46. Kd4 {[%clk 0:01:04]}  Kc6 {[%clk 0:00:03]} 47. Kxe4 {[%clk 0:01:03]}  Kc5 {[%clk 0:00:04]} 48. Kd3 {[%clk 0:01:02]}  Kd5 {[%clk 0:00:04]} 49. e4+ {[%clk 0:01:02]}  Ke5 {[%clk 0:00:04]} 50. Ke3 {[%clk 0:01:02]}  Ke6 {[%clk 0:00:04]} 51. Kd4 {[%clk 0:01:03]}  Kd6 {[%clk 0:00:05]} 52. e5+ {[%clk 0:01:02]}  Ke6 {[%clk 0:00:06]} 53. Ke4 {[%clk 0:01:03]}  Ke7 {[%clk 0:00:06]} 54. Kf5 {[%clk 0:01:03]}  Kf7 {[%clk 0:00:06]} 55. Kxg5 {[%clk 0:01:04]}  Ke6 {[%clk 0:00:06]} 56. Kf4 {[%clk 0:01:04]}  Ke7 {[%clk 0:00:07]} 57. Kf5 {[%clk 0:01:04]}  Kf7 {[%clk 0:00:08]} 58. e6+ {[%clk 0:01:04]} 1-0


[Site "https://www.chess.com"]

[Event "Titled Tuesday Blitz January 10 Early 2023"]
[White "Jaskolka, Tomasz"]
[Black "Kho, Darrell"]
[WhiteFideId "1170791"]
[BlackFideId "1019317"]
[WhiteElo "2238"]
[BlackElo "2075"]
[Result "1-0"]
[Round "06"]
[TimeControl "180+2"]
[Date "2023.01.10"]
[WhiteClock "0:00:59"]
[BlackClock "0:00:07"]

1. d4 {[%clk 0:03:00]}  f5 {[%clk 0:02:54]} 2. Bg5 {[%clk 0:02:59]}  g6 {[%clk 0:02:53]} 3. h4 {[%clk 0:02:56]}  h6 {[%clk 0:02:48]} 4. Bf4 {[%clk 0:02:53]}  Nf6 {[%clk 0:02:46]} 5. e3 {[%clk 0:02:52]}  d6 {[%clk 0:02:44]} 6. Nf3 {[%clk 0:02:52]}  Bg7 {[%clk 0:02:35]} 7. c4 {[%clk 0:02:51]}  e6 {[%clk 0:02:32]} 8. Nc3 {[%clk 0:02:51]}  Nbd7 {[%clk 0:02:26]} 9. Be2 {[%clk 0:02:45]}  Qe7 {[%clk 0:02:26]} 10. Qb3 {[%clk 0:02:39]}  e5 {[%clk 0:02:24]} 11. dxe5 {[%clk 0:02:40]}  dxe5 {[%clk 0:02:24]} 12. Bg3 {[%clk 0:02:39]}  c6 {[%clk 0:02:10]} 13. Rd1 {[%clk 0:02:33]}  Nh5 {[%clk 0:01:52]} 14. Bh2 {[%clk 0:02:31]}  e4 {[%clk 0:01:09]} 15. Nd4 {[%clk 0:02:16]}  Bxd4 {[%clk 0:00:59]} 16. Rxd4 {[%clk 0:02:14]}  Qxh4 {[%clk 0:00:57]} 17. Qc2 {[%clk 0:01:57]}  Nhf6 {[%clk 0:00:42]} 18. Rd6 {[%clk 0:01:43]}  Ng4 {[%clk 0:00:37]} 19. Nxe4 {[%clk 0:01:00]}  Nxh2 {[%clk 0:00:18]} 20. Qc3 {[%clk 0:01:00]}  O-O {[%clk 0:00:07]} 21. Rxg6+ {[%clk 0:00:59]} 1-0


[Site "https://www.chess.com"]